bitfinex/quotes_SOLUSD_20241210
["timestamp","ask_amount","ask_price","bid_price","bid_amount"]
[1733842905159,0.86314824,217.25,217.14,0.12549]
[1733842905359,0.5585599,217.26,217.14,36.56517357]
[1733842905579,0.86303752,217.25,217.08,36.43968357]
[1733842905791,0.25098,217.24,216.94,6.4696]
[1733842905955,20.86303752,217.25,216.96,0.50535723]
[1733842905956,0.25098,217.22,216.96,0.50535723]
[1733842906162,0.12549,217.2,216.96,0.50535723]
[1733842906360,20.0,217.25,216.96,0.50535723]
[1733842906361,0.86353261,217.19,216.99,36.43968357]
[1733842906588,0.12549,217.14,216.99,36.43968357]
[1733842906778,20.0,217.09,216.98,36.43968357]
[1733842906977,20.0,217.09,216.99,0.12549]
[1733842907179,0.86373543,217.08,216.98,36.43968357]
[1733842907393,23.776884,217.07,216.95,0.50597666]
[1733842907689,23.776884,217.13,217.0,0.12549]
[1733842907987,2.3023,217.17,217.03,36.43968357]
[1733842908190,0.5585599,217.26,216.92,38.02128357]
[1733842908191,23.776884,217.2,217.04,37.07068298]
[1733842908486,0.25098,217.16,216.96,0.50539996]
[1733842908691,0.12549,217.14,216.96,36.94508353]
[1733842908902,0.98921218,217.14,216.99,0.12549]
[1733842909197,0.86367413,217.25,217.08,0.12549]
[1733842909371,0.86367413,217.25,217.12,0.12549]
[1733842909685,0.5585599,217.26,217.13,36.43968357]
[1733842909988,0.5585599,217.26,217.14,0.12549]
[1733842910284,0.5585599,217.26,217.15,0.50469498]
[1733842910503,0.5585599,217.26,217.16,0.84203878]
[1733842910785,0.42553192,217.25,217.16,0.84203878]
[1733842910960,0.42553192,217.25,217.17,0.50467306]
[1733842911163,1.28855418,217.25,217.18,0.84196124]
[1733842911387,20.42553192,217.25,217.18,0.84196124]
[1733842911570,22.72693192,217.25,217.18,0.84196124]
[1733842911975,0.42553192,217.25,217.18,0.84196124]
[1733842912892,1.28859949,217.25,217.18,0.84196124]
[1733842913082,0.42553192,217.25,217.18,0.84196124]
[1733842913894,2.3016,217.24,217.18,0.84196124]
[1733842914191,0.42553192,217.23,217.18,0.84196124]
[1733842916865,0.42553192,217.23,217.19,0.12549]
[1733842917067,0.42553192,217.23,217.2,0.50431331]
[1733842917265,0.42553192,217.23,217.21,36.69066357]
[1733842917465,0.42553192,217.23,217.22,37.19485678]
[1733842917684,0.42553192,217.23,217.22,0.75517321]
[1733842918294,0.42553192,217.23,217.22,37.32034678]
[1733842919821,0.42553192,217.23,217.22,349.32034678]
[1733842919987,0.42553192,217.23,217.22,348.81615357]
[1733842920384,0.42553192,217.23,217.22,36.81615357]
[1733842920587,0.42553192,217.23,217.22,36.43968357]
[1733842920775,0.42553192,217.23,217.2,36.43968357]
[1733842920974,0.42553192,217.23,217.22,36.43968357]
[1733842921175,0.42553192,217.23,217.22,37.19433735]
[1733842921376,0.42553192,217.23,217.22,38.03614355]
[1733842921674,0.42553192,217.23,217.22,61.93851755]
[1733842922195,0.5585599,217.26,217.25,44.153354]
[1733842922376,0.5585599,217.26,217.25,118.37760931]
[1733842922576,0.5585599,217.26,217.25,117.87441109]
[1733842923109,2.2991,217.47,217.26,45.670564]
[1733842923273,2.2991,217.47,217.36,36.43968357]
[1733842923799,2.2991,217.47,217.37,0.12549]
[1733842924094,0.5585599,217.48,217.37,36.69066357]
[1733842924306,0.5585599,217.48,217.41,36.69066357]
[1733842924475,0.5585599,217.48,217.43,0.25098]
[1733842924798,0.5585599,217.48,217.36,37.28094756]
[1733842924997,0.5585599,217.48,217.36,0.84126399]
[1733842924998,0.12549,217.47,217.36,0.84126399]
[1733842925204,0.5585599,217.48,217.43,36.43968357]
[1733842925499,0.5585599,217.48,217.4,6.1616]
[1733842925500,5.99e-05,217.48,217.47,36.69066357]
[1733842925707,3.8796,217.72,217.47,37.19209826]
[1733842925999,2.78547774,217.72,217.61,36.43968357]
[1733842926200,0.86141745,217.85,217.61,36.43968357]
[1733842926499,2.785478,217.81,217.61,36.43968357]
[1733842926800,2.785478,217.81,217.55,36.43968357]
[1733842926801,0.12549,217.68,217.55,36.43968357]
[1733842926971,0.12549,217.68,217.51,0.12549]
[1733842926972,0.98706111,217.68,217.51,36.56517357]
[1733842927351,0.5585599,217.69,217.59,36.43968357]
[1733842927918,0.5585599,217.69,217.55,36.43968357]
[1733842928089,0.12549,217.68,217.53,36.43968357]
[1733842928281,4.43251377,217.68,217.52,0.84064519]
[1733842928479,0.25098,217.64,217.52,0.84064519]
[1733842928682,0.25098,217.62,217.52,0.84064519]
[1733842928875,0.86190927,217.61,217.52,0.84064519]
[1733842929086,0.86190927,217.61,217.37,2.70175403]
[1733842929087,20.0,217.58,217.44,36.43968357]
[1733842929383,20.0,217.58,217.37,0.50216751]
[1733842929384,20.0,217.53,217.39,36.43968357]
[1733842929598,23.776884,217.51,217.41,36.43968357]
[1733842929804,20.0,217.53,217.43,36.43968357]
[1733842930100,0.86213055,217.6,217.43,36.43968357]
[1733842930101,3.57229,217.59,217.43,36.43968357]
[1733842930297,20.0,217.54,217.43,36.43968357]
[1733842930493,20.0,217.54,217.43,36.94206803]
[1733842930676,24.6388535,217.53,217.41,36.43968357]
[1733842930888,23.776884,217.49,217.37,36.94206803]
[1733842931094,20.0,217.5,217.39,36.43968357]
[1733842931302,0.86221872,217.58,217.44,36.43968357]
[1733842931587,20.0,217.54,217.46,36.43968357]
[1733842931790,0.12549,217.61,217.53,36.43968357]
[1733842931997,0.12549,217.61,217.55,36.43968357]
[1733842932209,0.12549,217.61,217.5,0.25098]
[1733842932210,0.12549,217.61,217.59,36.43968357]
[1733842932408,0.12549,217.61,217.59,0.50122846]
[1733842932696,3.4466,217.6,217.48,6.4027]
[1733842932900,0.86181062,217.59,217.47,36.43968357]
[1733842933092,3.4466,217.6,217.48,0.12549]
[1733842933287,3.4466,217.6,217.48,0.25098]
[1733842933511,0.98731075,217.59,217.43,36.43968357]
[1733842933818,3.4461,217.64,217.5,36.43968357]
[1733842933988,0.12549,217.62,217.5,36.43968357]
[1733842934187,2.2972,217.65,217.52,36.43968357]
[1733842934697,0.12549,217.63,217.48,36.43968357]
[1733842934895,0.12549,217.61,217.46,36.43968357]
[1733842935103,0.25098,217.61,217.44,36.43968357]
[1733842935297,0.86187593,217.6,217.44,36.43968357]
[1733842935502,0.25098,217.59,217.42,36.43968357]
[1733842935703,20.0,217.54,217.42,36.43968357]
[1733842935903,23.776884,217.52,217.4,36.43968357]
[1733842936107,23.776884,217.48,217.35,36.43968357]
[1733842936310,3.8796,217.57,217.31,6.4027]
[1733842936311,3.8796,217.57,217.4,36.43968357]
[1733842936500,20.0,217.52,217.39,36.56517357]
[1733842936701,20.0,217.52,217.43,36.43968357]
[1733842936922,20.0,217.52,217.41,36.43968357]
[1733842937125,20.0,217.52,217.42,0.50261057]
[1733842937348,20.0,217.52,217.41,0.25098]
[1733842937623,20.0,217.48,217.36,36.43968357]
[1733842937799,20.0,217.48,217.35,36.94216941]
[1733842937998,0.86226892,217.47,217.32,36.43968357]
[1733842938193,20.0,217.48,217.36,36.43968357]
[1733842938431,3.8796,217.57,217.41,36.43968357]
[1733842938658,3.8796,217.57,217.31,6.4027]
[1733842938659,1.3195,217.68,217.51,36.43968357]
[1733842938865,0.5585599,217.69,217.57,36.43968357]
[1733842939063,0.5585599,217.69,217.52,0.50178056]
[1733842939064,0.5585599,217.69,217.6,0.25098]
[1733842939529,0.5585599,217.69,217.61,0.50091463]
[1733842939853,0.5585599,217.69,217.62,0.12549]
[1733842940249,0.5585599,217.69,217.61,0.50091463]
[1733842940650,0.5585599,217.69,217.64,0.12549]
[1733842940945,0.5585599,217.69,217.59,36.43968357]
[1733842941146,0.5585599,217.69,217.58,0.12549]
[1733842941348,0.5585599,217.69,217.6,0.12549]
[1733842941554,0.5585599,217.69,217.62,0.25098]
[1733842941729,0.5585599,217.69,217.62,36.69066357]
[1733842942937,0.5585599,217.69,217.62,36.43968357]
[1733842943155,0.5585599,217.69,217.57,56.43968357]
[1733842943370,0.5585599,217.69,217.6,36.43968357]
[1733842943666,0.5585599,217.69,217.56,36.43968357]
[1733842943977,0.5585599,217.69,217.61,36.43968357]
[1733842944268,0.5585599,217.69,217.54,11.4921]
[1733842944269,0.5585599,217.69,217.62,36.94048496]
[1733842944559,0.5585599,217.69,217.64,36.43968357]
[1733842944770,0.5585599,217.69,217.64,36.94031705]
[1733842945630,0.5585599,217.69,217.65,0.12549]
[1733842945836,0.5585599,217.69,217.66,36.94014089]
[1733842946256,0.5585599,217.69,217.61,332.0]
[1733842946257,0.5585599,217.69,217.62,36.94020557]
[1733842946448,0.5585599,217.69,217.58,36.94044151]
[1733842946849,0.5585599,217.69,217.63,36.43968357]
[1733842947158,0.5585599,217.69,217.64,0.50087426]
[1733842947848,0.5585599,217.69,217.61,36.43968357]
[1733842948050,0.5585599,217.69,217.58,36.43968357]
[1733842948359,0.5585599,217.69,217.63,36.43968357]
[1733842948537,0.5585599,217.69,217.63,36.94048401]
[1733842948953,0.5585599,217.69,217.63,0.50080044]
[1733842949334,0.5585599,217.69,217.56,36.43968357]
[1733842949532,0.5585599,217.69,217.57,0.50125642]
[1733842949738,0.5585599,217.69,217.6,36.43968357]
[1733842949938,0.5585599,217.69,217.62,36.43968357]
[1733842950137,0.5585599,217.69,217.63,0.5009439]
[1733842950547,0.5585599,217.69,217.58,36.43968357]
[1733842950960,26.324764,217.68,217.54,36.43968357]
[1733842951143,26.073784,217.68,217.58,36.43968357]
[1733842951341,20.5585599,217.69,217.6,36.43968357]
[1733842951564,0.5585599,217.69,217.64,36.43968357]
[1733842952055,0.5585599,217.69,217.65,36.94052214]
[1733842952260,0.5585599,217.69,217.67,36.43968357]
[1733842952465,0.5585599,217.69,217.68,0.5004058]
[1733842952838,0.5585599,217.69,217.66,0.50048862]
[1733842953161,0.5585599,217.69,217.67,36.43968357]
[1733842953352,0.5585599,217.69,217.68,0.62577588]
[1733842953555,0.5585599,217.69,217.68,103.82500702]
[1733842953748,0.5585599,217.69,217.68,103.32472114]
[1733842953947,0.86078868,217.88,217.72,20.0]
[1733842954156,0.86078868,217.88,217.74,36.43968357]
[1733842954339,0.12549,217.87,217.75,0.49992326]
[1733842954546,0.86078868,217.88,217.75,0.49992326]
[1733842955061,0.12549,217.86,217.75,0.49992326]
[1733842955266,3.28123294,217.86,217.75,0.49992326]
[1733842955860,22.2952,217.84,217.75,0.49992326]
[1733842956072,23.776884,217.79,217.72,0.50005985]
[1733842956368,0.12549,217.78,217.65,36.43968357]
[1733842956549,0.12549,217.78,217.62,1.5339]
[1733842956550,20.0,217.72,217.62,1.5339]
[1733842956757,20.0,217.72,217.61,0.50050187]
[1733842957172,20.0,217.68,217.58,36.43968357]
[1733842957350,23.776884,217.67,217.56,36.43968357]
[1733842957863,26.074084,217.65,217.52,42.73168357]
[1733842958050,26.074084,217.65,217.56,36.43968357]
[1733842958253,0.12549,217.76,217.64,36.43968357]
[1733842958454,6.45993628,217.84,217.67,36.43968357]
[1733842958648,2.2955,217.81,217.68,36.94006976]
[1733842958849,0.86093037,217.8,217.68,36.94006976]
[1733842959082,2.2955,217.81,217.69,36.43968357]
[1733842959278,2.2955,217.81,217.7,36.9399434]
[1733842959890,2.295,217.86,217.68,36.43968357]
[1733842960192,0.25098,217.84,217.69,0.50020825]
[1733842960677,0.25098,217.84,217.69,36.93989182]
[1733842960886,2.2953,217.83,217.69,36.93989182]
[1733842961194,22.2953,217.83,217.71,0.12549]
[1733842961348,22.2953,217.83,217.72,36.43968357]
[1733842961550,22.2953,217.83,217.63,26.881]
[1733842961551,0.98622789,217.82,217.68,36.43968357]
[1733842961749,0.98622789,217.82,217.64,24.27680524]
[1733842961750,2.2953,217.83,217.7,36.43968357]
[1733842961944,2.2953,217.83,217.71,36.93965935]
[1733842962152,2.82356783,217.87,217.74,36.43968357]
[1733842962153,2.2949,217.87,217.74,36.43968357]
[1733842962351,2.2949,217.87,217.75,0.49971675]
[1733842962551,2.2949,217.87,217.75,36.93940032]
[1733842962756,2.2949,217.87,217.75,0.49971675]
[1733842962957,2.2949,217.87,217.75,36.93940032]
[1733842963548,2.2949,217.87,217.76,36.69066357]
[1733842963747,2.2949,217.87,217.77,0.49955485]
[1733842964171,0.5585599,217.91,217.81,36.43968357]
[1733842964343,0.5585599,217.91,217.82,0.49918933]
[1733842964550,3.4419,217.9,217.79,0.49942895]
[1733842964767,3.4419,217.9,217.79,36.93911252]
[1733842965178,3.4419,217.9,217.79,0.49942895]
[1733842965385,23.4419,217.9,217.79,0.49942895]
[1733842965571,23.4419,217.9,217.8,0.49956896]
[1733842966075,0.5585599,217.91,217.81,0.12549]
[1733842966277,0.5585599,217.91,217.82,0.49914582]
[1733842966660,4.0003599,217.91,217.82,0.49914582]
[1733842966965,10.8838599,217.91,217.75,36.43968357]
[1733842967182,0.86060778,217.9,217.76,36.43968357]
[1733842967380,20.0,217.88,217.77,0.49962297]
[1733842967569,23.4423,217.88,217.77,0.49962297]
[1733842967966,3.4423,217.88,217.78,0.12549]
[1733842968169,3.4423,217.88,217.79,0.49943278]
[1733842968368,3.4423,217.88,217.79,36.93911635]
[1733842968759,3.4423,217.88,217.79,0.49943278]
[1733842969283,3.4423,217.88,217.8,0.49949987]
[1733842969495,0.86055526,217.87,217.75,0.49955598]
[1733842969698,20.0,217.85,217.68,355.23155522]
[1733842970001,3.4425,217.86,217.63,1.5339]
[1733842970002,0.25098,217.79,217.63,1.5339]
[1733842970167,20.0,217.75,217.62,0.50069279]
[1733842970369,0.86125446,217.74,217.62,0.50069279]
[1733842970700,0.86127146,217.74,217.62,0.50098839]
[1733842970902,0.42553191,217.73,217.62,0.50098839]
[1733842971200,0.42553191,217.73,217.59,0.50088435]
[1733842971493,0.25098,217.67,217.5,0.50108638]
[1733842971681,20.0,217.64,217.5,0.50108638]
[1733842972083,0.42553191,217.63,217.5,0.50108638]
[1733842972502,0.42553191,217.63,217.5,0.25098]
[1733842972705,0.42553191,217.63,217.51,0.50168143]
[1733842973302,0.12549,217.61,217.43,36.43968357]
[1733842973651,0.42553191,217.6,217.44,36.94175662]
[1733842973795,0.12549,217.59,217.44,0.50207305]
[1733842973996,0.12549,217.57,217.4,0.5022178]
[1733842974308,0.12549,217.52,217.35,36.43968357]
[1733842974512,0.12549,217.52,217.36,0.50283944]
[1733842974513,2.2987,217.51,217.36,0.50283944]
[1733842974704,0.86219813,217.5,217.36,0.50283944]
[1733842975038,0.42553191,217.49,217.38,36.43968357]
[1733842975333,0.42553191,217.49,217.39,0.50249714]
[1733842975698,0.42553191,217.49,217.4,0.12549]
[1733842976039,0.42553191,217.49,217.42,23.902374]
[1733842976329,0.42553191,217.49,217.44,23.776884]
[1733842976495,0.42553191,217.49,217.45,24.27916818]
[1733842976700,0.42553191,217.49,217.45,60.71885175]
[1733842976902,0.42553191,217.49,217.45,24.27916818]
[1733842977401,0.42553191,217.49,217.45,0.50228418]
[1733842978225,0.42553191,217.49,217.31,11.5041]
[1733842978226,0.42553191,217.49,217.4,0.50246172]
[1733842978818,2.72453191,217.49,217.33,36.94235229]
[1733842979032,0.8622416,217.48,217.33,0.50266872]
[1733842979445,0.42553191,217.47,217.34,0.12549]
[1733842979733,0.42553191,217.47,217.35,0.50295994]
[1733842980146,0.42553191,217.47,217.36,0.25098]
[1733842980301,0.42553191,217.47,217.37,24.27957954]
[1733842980897,0.42553191,217.47,217.41,36.56517357]
[1733842981102,0.42553191,217.47,217.39,0.50235049]
[1733842981535,0.42553191,217.47,217.38,23.776884]
[1733842981834,2.2992,217.46,217.34,0.50284784]
[1733842982016,2.2992,217.46,217.35,20.0]
[1733842982204,0.42553191,217.45,217.35,20.0]
[1733842982403,0.12549,217.42,217.26,0.50309475]
[1733842982625,0.12549,217.42,217.2,37.95178357]
[1733842982626,1.11358438,217.42,217.2,37.95178357]
[1733842982810,0.12549,217.39,217.21,0.50386757]
[1733842983012,0.12549,217.39,217.12,1.5121]
[1733842983013,0.25098,217.36,217.17,0.50397446]
[1733842983212,0.12549,217.34,217.13,36.43968357]
[1733842983399,0.12549,217.32,217.2,36.43968357]
[1733842983604,0.42553191,217.33,217.22,36.43968357]
[1733842983805,0.42553191,217.32,217.24,36.43968357]
[1733842984019,0.42553191,217.32,217.25,0.5037377]
[1733842984431,0.42553191,217.32,217.26,0.25098]
[1733842984733,0.42553191,217.32,217.27,20.50338853]
[1733842984906,0.42553191,217.32,217.28,0.25098]
[1733842985230,0.42553191,217.32,217.29,23.776884]
[1733842985430,0.42553191,217.32,217.26,0.50335661]
[1733842985598,0.42553191,217.32,217.26,24.28024061]
[1733842986000,0.42553191,217.32,217.26,23.776884]
[1733842986206,0.42553191,217.32,217.22,0.50381951]
[1733842986429,0.42553191,217.32,217.19,0.50404272]
[1733842986813,0.42553191,217.32,217.2,0.25098]
[1733842987017,0.42553191,217.32,217.21,0.50402061]
[1733842987327,0.42553191,217.32,217.16,0.5585599]
[1733842987328,0.12549,217.29,217.16,0.5585599]
[1733842987540,1.11410021,217.29,217.16,0.5585599]
[1733842987765,0.25098,217.27,217.16,0.5585599]
[1733842988056,0.42553191,217.26,217.17,36.56517357]
[1733842988219,0.42553191,217.26,217.19,36.43968357]
[1733842988419,0.42553191,217.26,217.21,0.12549]
[1733842988723,0.42553191,217.26,217.25,36.69066357]
[1733842988923,0.42553191,217.26,217.25,23.902374]
[1733842989127,0.42553191,217.26,217.24,0.50378843]
[1733842989933,0.42553191,217.26,217.25,80.59303757]
[1733842990133,0.42553191,217.26,217.25,43.776884]
[1733842990336,0.42553191,217.26,217.25,24.28040788]
[1733842990545,0.42553191,217.26,217.25,60.84558145]
[1733842990847,0.86271102,217.57,217.3,0.12549]
[1733842990848,4.438,217.45,217.3,0.12549]
[1733842991035,4.438,217.45,217.26,0.50315091]
[1733842991036,0.25098,217.43,217.26,0.50315091]
[1733842991246,0.25098,217.41,217.22,36.43968357]
[1733842991543,0.86283829,217.41,217.28,36.43968357]
[1733842991729,0.86251212,217.43,217.29,0.5034697]
[1733842992123,0.12549,217.42,217.29,0.5034697]
[1733842992359,2.2996,217.42,217.3,36.56517357]
[1733842992641,6.7374,217.46,217.32,36.43968357]
[1733842992642,0.86240641,217.46,217.32,36.43968357]
[1733842992850,2.2992,217.47,217.35,0.25098]
[1733842993052,2.2992,217.47,217.35,0.50285856]
[1733842993357,0.25098,217.45,217.28,36.43968357]
[1733842993643,0.25098,217.45,217.29,0.50353017]
[1733842993644,0.12549,217.43,217.29,0.50353017]
[1733842993821,0.86254236,217.44,217.3,36.81615357]
[1733842994018,2.2992,217.47,217.34,36.43968357]
[1733842994219,2.2987,217.52,217.39,36.43968357]
[1733842994519,4.438,217.57,217.43,36.43968357]
[1733842994520,3.16028446,217.56,217.43,36.43968357]
[1733842994852,18.419084,217.55,217.47,36.43968357]
[1733842995148,1.3195,217.7,217.53,36.43968357]
[1733842995149,2.2974,217.64,217.53,36.43968357]
[1733842995317,2.2969,217.68,217.54,0.50155687]
[1733842995524,0.86148531,217.67,217.56,36.43968357]
[1733842995737,2.2969,217.68,217.56,36.94111539]
[1733842995940,3.57476052,217.67,217.52,36.43968357]
[1733842996249,2.42259,217.66,217.53,0.5017269]
[1733842996541,3.1586752,217.66,217.53,0.5017269]
[1733842996725,3.1586752,217.66,217.5,36.43968357]
[1733842996726,20.0,217.64,217.5,36.43968357]
[1733842996926,20.0,217.64,217.51,0.50182652]
[1733842997120,2.2975,217.62,217.51,0.50182652]
[1733842997351,0.86174462,217.61,217.48,36.43968357]
[1733842997525,0.86174462,217.61,217.47,23.776884]
[1733842997721,20.0,217.64,217.51,36.43968357]
[1733842997941,0.86158127,217.63,217.47,60.71817558]
[1733842998148,0.86174626,217.62,217.49,36.43968357]
[1733842998347,0.12549,217.64,217.48,0.12549]
[1733842998530,0.86169609,217.64,217.5,36.81615357]
[1733842998844,0.86160141,217.65,217.51,24.27853229]
[1733842999427,0.86160141,217.65,217.52,60.59303757]
[1733842999746,0.86158656,217.65,217.53,0.50161858]
[1733843000048,0.25098,217.64,217.49,23.776884]
[1733843000221,0.12549,217.62,217.49,0.50190613]
[1733843000644,0.25098,217.62,217.49,0.50190613]
[1733843000859,2.78686676,217.69,217.47,0.50223191]
[1733843000860,0.12549,217.6,217.47,0.50223191]
[1733843001021,0.86177586,217.66,217.49,36.43968357]
[1733843001225,2.2973,217.64,217.5,0.50176348]
[1733843002031,0.86163576,217.63,217.5,0.50176348]
[1733843002240,2.2975,217.62,217.5,0.50176348]
[1733843002433,0.86175459,217.61,217.5,0.50176348]
[1733843002640,2.2975,217.62,217.5,0.50176348]
[1733843003556,2.2971,217.66,217.51,23.776884]
[1733843003734,0.86168455,217.65,217.51,23.776884]
[1733843004140,0.12549,217.64,217.49,23.776884]
[1733843004654,0.12549,217.61,217.43,36.43968357]
[1733843004872,0.12549,217.58,217.41,0.50193753]
[1733843005036,0.25098,217.54,217.36,36.94217753]
[1733843005236,0.25098,217.53,217.36,0.50249396]
[1733843005463,0.12549,217.49,217.32,0.50302238]
[1733843005645,0.86228846,217.52,217.32,0.50302238]
[1733843005646,0.86235206,217.53,217.38,36.43968357]
[1733843005959,0.86206794,217.53,217.39,0.50258134]
[1733843006159,21.3195,217.54,217.4,0.25098]
[1733843006364,21.3195,217.54,217.3,1.6384]
[1733843006365,20.0,217.54,217.42,0.12549]
[1733843006547,0.86183514,217.53,217.38,36.43968357]
[1733843006748,0.86183514,217.53,217.39,0.50258035]
[1733843006950,0.25098,217.52,217.36,0.5027517]
[1733843007259,0.12549,217.5,217.34,36.43968357]
[1733843007485,0.86219628,217.52,217.37,0.12549]
[1733843007647,20.0,217.53,217.39,36.56517357]
[1733843007847,20.0,217.53,217.41,36.69066357]
[1733843008143,4.438,217.57,217.45,20.0]
[1733843008352,2.298,217.58,217.45,20.0]
[1733843008353,2.298,217.58,217.46,0.50218624]
[1733843008544,2.2976,217.62,217.47,60.59303757]
[1733843008745,0.8616345,217.61,217.48,0.50171447]
[1733843008959,0.12549,217.6,217.45,60.34205757]
[1733843009162,0.12549,217.58,217.46,0.50204576]
[1733843009361,0.25098,217.58,217.41,0.12549]
[1733843009575,0.12549,217.54,217.37,0.12549]
[1733843009741,0.98759763,217.54,217.37,24.40503473]
[1733843009937,0.86210763,217.54,217.39,0.12549]
[1733843010264,20.0,217.52,217.4,23.902374]
[1733843010460,20.0,217.52,217.41,0.50251127]
[1733843010960,20.0,217.52,217.38,36.43968357]
[1733843011262,0.86200474,217.51,217.34,36.43968357]
[1733843011462,0.12549,217.46,217.28,36.43968357]
[1733843011663,2.2993,217.45,217.3,0.25098]
[1733843011871,0.86242006,217.44,217.3,0.25098]
[1733843012165,0.86242006,217.44,217.3,0.75426895]
[1733843012344,2.2993,217.45,217.34,0.12549]
[1733843012665,3.16139737,217.49,217.36,24.153354]
[1733843012851,20.0,217.49,217.38,23.776884]
[1733843013049,0.86226165,217.61,217.4,23.776884]
[1733843013269,0.86226165,217.61,217.41,0.50246788]
[1733843013573,0.86226165,217.61,217.42,60.59303757]
[1733843013574,6.8932,217.6,217.42,60.59303757]
[1733843013874,0.86197087,217.59,217.43,24.2792712]
[1733843014181,0.86197087,217.59,217.39,23.902374]
[1733843014489,0.25098,217.58,217.4,0.50245164]
[1733843014772,0.25098,217.58,217.28,1.89450107]
[1733843014773,24.153354,217.56,217.41,0.50260539]
[1733843015065,20.0,217.53,217.39,23.776884]
[1733843015264,20.0,217.53,217.4,0.50276405]
[1733843015465,0.86205118,217.52,217.4,0.50276405]
[1733843015973,2.05625688,217.51,217.41,60.46754757]
[1733843016473,4.47881889,217.63,217.51,0.12549]
[1733843016679,1.82394977,217.69,217.55,23.776884]
[1733843016841,2.2971,217.67,217.52,0.25098]
[1733843017044,2.2971,217.67,217.38,15.4015]
[1733843017045,0.25098,217.65,217.47,0.12549]
[1733843017262,0.12549,217.63,217.45,20.0]
[1733843017656,2.2971,217.67,217.33,312.0]
[1733843017657,4.438,217.61,217.33,312.0]
[1733843017858,4.438,217.61,217.3,42.66128357]
[1733843017859,0.25098,217.56,217.3,42.66128357]
[1733843018057,0.25098,217.54,217.31,0.50315267]
[1733843018278,0.25098,217.48,217.25,36.43968357]
[1733843018467,0.12549,217.42,217.27,0.12549]
[1733843018677,20.0,217.43,217.29,0.12549]
[1733843018969,20.0,217.43,217.28,0.84157374]
[1733843018970,0.86243179,217.42,217.28,1.34488278]
[1733843019167,0.25098,217.45,217.28,1.34488278]
[1733843019379,20.0,217.43,217.29,0.84153501]
[1733843019582,0.86247487,217.42,217.29,0.84153501]
[1733843019762,20.0,217.43,217.3,0.50339929]
[1733843019958,0.86246527,217.42,217.31,0.84145756]
[1733843020169,0.86246527,217.42,217.31,1.34485238]
[1733843020387,0.86246527,217.42,217.31,0.84145756]
[1733843020964,2.2998,217.41,217.31,0.84145756]
[1733843021310,20.0,217.34,217.31,0.84145756]
[1733843021585,0.86286638,217.33,217.17,0.50417821]
[1733843021879,0.86286638,217.33,217.2,36.43968357]
[1733843022094,0.12549,217.36,217.21,1.34570879]
[1733843022269,20.0,217.33,217.21,0.84184495]
[1733843022460,0.86292585,217.32,217.21,0.84184495]
[1733843023057,20.0,217.38,217.22,0.75522448]
[1733843023256,14.11546138,217.45,217.16,0.5585599]
[1733843023257,2.2996,217.42,217.24,36.69066357]
[1733843023481,2.2996,217.42,217.28,0.12549]
[1733843023678,2.2996,217.42,217.29,24.027864]
[1733843023982,6.7372,217.46,217.32,0.12549]
[1733843024192,0.86235778,217.45,217.33,0.12549]
[1733843024362,3.16149133,217.46,217.33,24.28004503]
[1733843025193,2.2992,217.46,217.33,24.28004503]
[1733843025571,2.2992,217.46,217.34,24.027864]
[1733843025572,20.0,217.45,217.34,24.027864]
[1733843025800,2.2988,217.5,217.35,0.25098]
[1733843026097,2.2988,217.5,217.39,0.12549]
[1733843026399,0.86195619,217.6,217.46,0.25098]
[1733843026576,3.15926462,217.63,217.48,24.027864]
[1733843026779,0.8474436,217.62,217.5,24.027864]
[1733843026975,0.8474436,217.62,217.52,0.37647]
[1733843027181,0.8474436,217.62,217.53,24.27830148]
[1733843027788,0.8474436,217.62,217.47,42.66128357]
[1733843027986,0.8474436,217.62,217.51,36.56517357]
[1733843028302,0.8474436,217.62,217.49,23.902374]
[1733843028303,0.8474436,217.62,217.52,0.50136825]
[1733843028498,3.1450436,217.62,217.51,23.776884]
[1733843028711,0.86168699,217.61,217.48,0.50169315]
[1733843028878,0.9729336,217.6,217.45,0.50199793]
[1733843029201,2.298,217.58,217.4,36.94185506]
[1733843029403,0.8474436,217.57,217.46,0.25098]
[1733843029904,0.8474436,217.57,217.47,0.50206566]
[1733843030506,0.86185224,217.56,217.44,23.776884]
[1733843030691,0.8474436,217.55,217.4,36.94215436]
[1733843030893,1.27297552,217.55,217.4,36.94215436]
[1733843031091,2.2985,217.53,217.4,0.50247079]
[1733843031407,20.0,217.5,217.35,36.43968357]
[1733843031578,20.0,217.5,217.37,0.25098]
[1733843031779,0.42553192,217.49,217.39,0.12549]